Cogmind - Beta 15 @@@ ROGUE MODE // 2025.07.01 @ 18:13:05 Player: kim.jet.wav Result: Self-destructed Performance ------------- Evolutions (1) 500 Regions Visited (3) 600 Robots Destroyed (11) 55 Value Destroyed (176) 176 Prototype IDs (0) 0 Alien Tech Used (0) 0 Bonus (0) 0 TOTAL SCORE: 1331 Bonus ------- None Cogmind --------- Core Integrity 386/400 Matter 300/300 Energy 121/125 System Corruption 0% Temperature Cool (0) Movement Flying (120) Ox1 Location -9/Materials Parts ------- > --- POWER (1) -------- Light Ion Engine > --- PROPULSION (3) --- Flight Unit > --- UTILITY (3) ------ Seismic Detector Targeting Computer ECM Suite > --- WEAPON (2) ------- Datajack > --- INVENTORY (5) ---- Ion Engine Seismic Detector Heavy EM Pulse Gun Small Laser Peak State ------------ > --- POWER ------------ Ion Engine > --- PROPULSION ------- Aluminum Leg Aluminum Leg > --- UTILITY ---------- Small Storage Unit Seismic Detector > --- WEAPON ----------- Medium Laser Small Laser > --- INVENTORY -------- Light Ion Engine [Rating: 7] Favorites ----------- Power Light Ion Engine Engine Light Ion Engine Propulsion Aluminum Leg Leg Aluminum Leg Flight Unit Flight Unit Utility Seismic Detector Device Seismic Detector Storage Medium Storage Unit Processor Targeting Computer Weapon Medium Laser Energy Gun Medium Laser Special Melee Weapon Datajack Build | -11 -10 -10 -9 ------- Run | Yrd Mat Min Mat Slots Evolved 2 | . . . 2 Power . | . . . . Propulsion 1 | . . . 1 Utility 1 | . . . 1 Weapon . | . . . . Parts Attached 17 | 7 9 . 1 Power 2 | 1 1 . . Engine 2 | 1 1 . . Core . | . . . . Reactor . | . . . . Propulsion 6 | 2 4 . . Treads . | . . . . Leg 4 | 2 2 . . Wheel . | . . . . Hover . | . . . . Flight 2 | . 2 . . Utility 6 | 2 3 . 1 Device 3 | 1 1 . 1 Storage 2 | 1 1 . . Processor 1 | . 1 . . Hackware . | . . . . Protection . | . . . . Artifact . | . . . . Weapon 3 | 2 1 . . Energy Gun 2 | 2 . . . Energy Cannon . | . . . . Ballistic Gun . | . . . . Ballistic Cannon . | . . . . Launcher . | . . . . Special Weapon . | . . . . Impact Weapon . | . . . . Slashing Weapon . | . . . . Piercing Weapon . | . . . . Special Melee Weapon 1 | . 1 . . Unidentified Prototypes . | . . . . Parts Lost 2 | . 1 . 1 Power . | . . . . Propulsion 1 | . . . 1 Utility 1 | . 1 . . Weapon . | . . . . Highest Loss Streak 1 | . 1 . 1 To Critical Strikes . | . . . . Average Backups 2 | . 3 3 3 Power . | . 1 1 1 Propulsion . | . . . . Utility 1 | . 1 1 1 Weapon . | . . 1 1 Tool/Special . | . . . . Unused Backups 3 | . 1 . 2 Power . | . . . . Propulsion . | . . . . Utility 2 | . 1 . 1 Weapon 1 | . . . 1 Tool/Special . | . . . . Average Slot Usage (%) 89 | . 95 85 67 Engine 13 | . 14 14 11 Leg 13 | . 21 . . Flight 13 | . 6 28 20 Device 13 | . 13 14 13 Storage 6 | . 10 . . Processor 7 | . 3 14 11 Energy Gun 13 | . 21 . . Special Melee Weapon 6 | . 2 14 11 Peak Build Rating 7 | 7 7 6 7 Average Rating 6 | 5 6 6 6 On Entrance 4 | . 7 6 6 Naked Turns . | . . . . Heaviest Build 20 | 14 20 5 7 Greatest Support 20 | 20 20 8 8 Greatest Overweight (x) 4 | 2 4 . 1 Average Overweight (x) . | . . . . Largest Inventory Capacity 10 | 8 10 5 5 Average Capacity 7 | 7 8 5 5 Most Carried 6 | 1 6 3 4 Average Carried 2 | . 3 3 3 Final Capacity 8 | 8 5 5 5 Final Carried 4 | 1 3 3 4 Class Distribution -------------------- 100% | Mutant Dominant Class ---------------- Mutant | -10/Materials Mutant | -10/Mines Mutant | -9/Materials Resources | -11 -10 -10 -9 ----------- Run | Yrd Mat Min Mat Matter Collected 466 | 270 176 . 20 Remotely . | . . . . Salvage Created 272 | 47 225 . . Parts 19 | 6 13 . . Haulers Intercepted . | . . . . Recyclers Shooed . | . . . . Parts Field Recycled . | . . . . Retrieved Matter . | . . . . Parts Self-Destructed . | . . . . Prevented . | . . . . Kills | -11 -10 -10 -9 ------- Run | Yrd Mat Min Mat Combat Hostiles Destroyed 9 | . 9 . . Guns 8 | . 8 . . Classes Destroyed 3 | 1 2 . . Tunneler 2 | 2 . . . Swarmer 6 | . 6 . . Grunt 3 | . 3 . . Best Kill Streak 3 | 2 3 . . Combat Bots Only 3 | . 3 . . Max Kills in Single Turn 2 | 1 2 . . Gunslinging 1 | . 1 . . Exploded . | . . . . Melee . | . . . . Uniques/NPCs Destroyed . | . . . . Combat | -11 -10 -10 -9 -------- Run | Yrd Mat Min Mat Hostile Shots Fired 47 | . 44 1 2 Missed 11 | . 10 1 . Hits 36 | . 34 . 2 Projectile 36 | . 34 . 2 Damage Taken 369 | . 338 . 31 Core 145 | . 131 . 14 Absorbed by Shields . | . . . . Core Remaining (%) 73 | 100 . 47 . Volleys Fired 24 | 3 21 . . Largest 2 | 2 2 . . Hottest 90 | 90 90 . . Shots Fired 48 | 6 42 . . Gun 48 | 6 42 . . Cannon . | . . . . Launcher . | . . . . Special . | . . . . Kinetic . | . . . . Thermal 48 | 6 42 . . Explosive . | . . . . Electromagnetic . | . . . . Robot Hit Streak 4 | 2 4 . . Robot Miss Streak 3 | 1 3 . . Penetration Max . | . . . . Secondary Targets 3 | . 3 . . Max Gunslinging Chain 1 | . 1 . . Shots Hit Robots 35 | 3 29 2 1 Core Hits 13 | 2 11 . . Critical Kills . | . . . . Critical Parts Destroyed . | . . . . Critical Strikes 2 | . 2 . . Burn 2 | . 2 . . Melee Attacks 9 | . 4 2 3 Impact . | . . . . Slashing . | . . . . Piercing . | . . . . Sneak Attacks 5 | . 3 2 . Combat Hostiles . | . . . . Follow-up Attacks . | . . . . Damage Inflicted 336 | 49 287 . . Guns 336 | 49 287 . . Cannons . | . . . . Explosions . | . . . . Melee . | . . . . Ramming . | . . . . Kinetic . | . . . . Thermal 336 | 49 287 . . Explosive . | . . . . Electromagnetic . | . . . . Impact . | . . . . Slashing . | . . . . Piercing . | . . . . Highest Corruption . | . . . . Average Corruption . | . . . . Corruption Purged . | . . . . Corruption Blocked . | . . . . Overload Shots . | . . . . Overflow Damage . | . . . . Projectiles . | . . . . Explosions . | . . . . Melee . | . . . . Knockbacks . | . . . . Impact . | . . . . Kinetic . | . . . . Secondary . | . . . . Self-Inflicted Damage . | . . . . Shots . | . . . . Rammed . | . . . . Targets Rammed . | . . . . Kicked . | . . . . Crushed . | . . . . Highest Temperature 410 | 90 410 . . Average Temperature 138 | 48 150 . . Received Heat Transfer 156 | . 147 . 9 Effects 4 | . 4 . . Shutdowns 3 | . 3 . . Matter Decay 1 | . 1 . . Siege Activations . | . . . . Martial Activations . | . . . . Shielding Activations . | . . . . Robots Disrupted . | . . . . Combat Hostiles . | . . . . Robots Corrupted . | . . . . Combat Hostiles . | . . . . Parts Fried . | . . . . Impact Corruptions . | . . . . Robots Melted 1 | . 1 . . Combat Hostiles 1 | . 1 . . Parts Melted 3 | . 3 . . Heat Transferred 1041 | 136 905 . . Parts Sabotaged . | . . . . Parts Stolen . | . . . . Parts Stripped . | . . . . Power Chain Reactions . | . . . . Alert | -11 -10 -10 -9 ------- Run | Yrd Mat Min Mat Maximum Alert Level . | . . . . Low Security (%) 100 | 100 100 100 100 Level 1 . | . . . . Level 2 . | . . . . Level 3 . | . . . . Level 4 . | . . . . Level 5 . | . . . . High Security . | . . . . Max Security . | . . . . Peak Influence 83 | 10 83 30 15 Initial 28 | . . 28 . Average 21 | 2 32 8 4 Influence Increases 326 | 10 271 30 15 Destroy 0b10 Robot/C 180 | . 180 . . Destroy 0b10 Robot/NC 10 | 10 . . . Destroy Leader 40 | . 40 . . Successful Hack 6 | . 6 . . Partial Spotted 60 | . 45 . 15 Lose Combat Pursuer 30 | . . 30 . Influence Decreases 326 | 10 196 105 15 Entered New Map 47 | . . 47 . Time Decay 269 | 10 186 58 15 Lost Part 10 | . 10 . . Squads Dispatched 4 | . 3 . 1 Investigation . | . . . . Extermination . | . . . . Reinforcement 4 | . 3 . 1 Assault . | . . . . Garrison . | . . . . Intercept . | . . . . Searches Triggered . | . . . . Construction Impeded . | . . . . Haulers Reinforced . | . . . . Active Scanning Responses . | . . . . Cargo Convoy Interrupts . | . . . . Stealth | -11 -10 -10 -9 --------- Run | Yrd Mat Min Mat Distress Signals . | . . . . Communications Jammed . | . . . . Distress Signals . | . . . . Times Spotted 28 | . 20 2 6 Peak Tracking Total 5 | . 3 2 5 Tactical Retreats 4 | . 3 1 . Traps | -11 -10 -10 -9 ------- Run | Yrd Mat Min Mat Traps Triggered . | . . . . Indirectly . | . . . . Trap Hack Attempts . | . . . . Triggered . | . . . . Disarmed . | . . . . Reprogrammed . | . . . . Reused . | . . . . Traps Extracted . | . . . . Installed . | . . . . Triggered . | . . . . Machines | -11 -10 -10 -9 ---------- Run | Yrd Mat Min Mat Machines Disabled . | . . . . Max in Single Turn . | . . . . Machines Repaired . | . . . . Machines Dismantled . | . . . . Machines Sabotaged . | . . . . Overloaded Fab Kills . | . . . . Hacking | -11 -10 -10 -9 --------- Run | Yrd Mat Min Mat Machines Accessed 3 | . 1 . 2 Terminals 3 | . 1 . 2 Fabricators . | . . . . Repair Stations . | . . . . Recycling Units . | . . . . Scanalyzers . | . . . . Garrison Access . | . . . . Total Hacks 4 | . 2 . 2 Successful 2 | . 1 . 1 Failed 2 | . 1 . 1 Catastrophic 1 | . . . 1 Database Lockouts . | . . . . Manual 4 | . 2 . 2 Terminals 4 | . 2 . 2 Fabricators . | . . . . Repair Stations . | . . . . Recycling Units . | . . . . Scanalyzers . | . . . . Garrison Access . | . . . . Terminal Hacks . | . . . . Fabricator Hacks . | . . . . Repair Station Hacks . | . . . . Recycling Unit Hacks . | . . . . Scanalyzer . | . . . . Garrison Access Hacks . | . . . . Unauthorized Hacks 2 | . 1 . 1 Terminals 2 | . 1 . 1 Assimilate 2 | . 1 . 1 Fabricators . | . . . . Repair Stations . | . . . . Recycling Units . | . . . . Scanalyzers . | . . . . Garrison Access . | . . . . Data Cores Recovered . | . . . . Used . | . . . . Hacking Detections 2 | . 1 . 1 Full Trace Events . | . . . . Feedback Events . | . . . . Feedback Blocked . | . . . . Robot Schematics Acquired . | . . . . Robots Built . | . . . . Authchips . | . . . . Time . | . . . . Total Robot Build Rating . | . . . . Part Schematics Acquired . | . . . . Parts Built . | . . . . Authchips . | . . . . Time . | . . . . Total Part Build Rating . | . . . . Parts Repaired . | . . . . Time . | . . . . Parts Recycled . | . . . . Recycled Matter . | . . . . Retrieved Matter . | . . . . Retrieved Components . | . . . . Parts Scanalyzed . | . . . . Part Schematics Acquired . | . . . . Parts Damaged . | . . . . Bothacking | -11 -10 -10 -9 ------------ Run | Yrd Mat Min Mat Used RIF Installer . | . . . . Robots Hacked 5 | . 2 2 1 Non-combat 5 | . 2 2 1 Combat . | . . . . Robot Hacks Applied 5 | . 2 2 1 parse_system 4 | . 1 2 1 check_alert 1 | . 1 . . Relay Couplers Released . | . . . . Fabnet Peak Effective % . | . . . . Robots Rewired . | . . . . Allies Hacked . | . . . . Hacks Repelled . | . . . . Allies | -11 -10 -10 -9 -------- Run | Yrd Mat Min Mat Total Allies . | . . . . Largest Group . | . . . . Highest-Rated Group . | . . . . Highest-Rated Ally . | . . . . Total Orders . | . . . . Ally Attacks . | . . . . Total Damage . | . . . . Kills . | . . . . Allies Corrupted . | . . . . Allies Melted . | . . . . Intel | -11 -10 -10 -9 ------- Run | Yrd Mat Min Mat Active Infowar (turns) 826 | 10 507 218 91 Seismic 500 | 10 181 218 91 ECM 338 | . 326 . 12 Robot Analysis Total . | . . . . Derelict Logs Recovered 1 | . . 1 . Drone Launches . | . . . . Drone Recoveries . | . . . . Exploration | -11 -10 -10 -9 ------------- Run | Yrd Mat Min Mat Turns Passed 929 | 82 538 218 91 Spaces Moved 1046 | 51 436 346 213 Core 13 | 9 4 . . Treads . | . . . . Legs 253 | 42 211 . . Wheels . | . . . . Hover . | . . . . Flight 780 | . 221 346 213 Fastest Speed 37 | 50 37 37 37 Average Speed 58 | 118 79 37 37 Slowest Speed 250 | 150 250 37 120 Overloaded Moves . | . . . . Propulsion Burnouts . | . . . . Robots Hopped 5 | . 1 . 4 Potential Cave-ins . | . . . . Cave-ins Triggered . | . . . . Exploration Rate (%) 36 | 5 55 60 24 Regions Visited 3 Branch Regions 1 Pre-discovered Areas . | . . . . Known Exits Taken . | . . . . Unknown Exits Taken 3 | 1 1 1 . Scrap Searched . | . . . . Spaces Dug . | . . . . Terrain Destroyed . | . . . . Melee . | . . . . Projectile . | . . . . AOE . | . . . . Terrain Rammed . | . . . . Walls Destroyed . | . . . . Machines Disabled . | . . . . Actions | -11 -10 -10 -9 --------- Run | Yrd Mat Min Mat Total 1298 | 63 583 434 218 Wait 187 | 1 95 87 4 Move 1033 | 50 433 345 205 Hop 5 | . 1 . 4 Pick Up 8 | 2 5 . 1 Fast Attach 10 | 6 3 . 1 Attach 3 | 1 2 . . Detach 4 | . 4 . . Swap 7 | . 7 . . Drop 8 | . 8 . . Fire 24 | 3 21 . . Melee 9 | . 4 2 3 Ram . | . . . . Kick . | . . . . Crush . | . . . . Escape Stasis . | . . . . Rewire . | . . . . Trap . | . . . . Miscellaneous . | . . . . Route ------- -11/Scrapyard -10/Materials -10/Mines -9/Materials History --------- Turn | Location | Event 12 | -11/Scrapyard | Discovered new exit (range 15) 83 | -11/Scrapyard | Entered Materials 302 | -10/Materials | Build established: Mutant 437 | -10/Materials | Core integrity fell below 50% 577 | -10/Materials | Discovered new exit (range 11) 621 | -10/Materials | Entered Mines 806 | -10/Mines | Learned Materials garrison access intel 828 | -10/Mines | Discovered new exit (range 14) 839 | -10/Mines | Entered Materials 839 | -9/Materials | Evolved 2 slots: Propulsion x1, Utility x1 930 | -9/Materials | Self-destructed Last Messages --------------- LOCATION=UNKNOWN GOAL=ESCAPE 00848_ Acquired Hvy. EM Pulse Gun. 00850_ Connecting with Terminal... 00850_ Current location identified: Materials 00867_ K-01 Serf collects debris. 00873_ O-16 Technician: "IFF HANDSHAKE FAILED. SECURING TERMINAL." 00880_ ALERT: Hostiles spotted, dispatching reinforcements to Terminal M001. 00900_ Jacked W-16 Scout... >>parse_system Reading system data... 00909_ Connecting with Terminal... >>Trojan(Assimilate) Trojan loaded successfully. Testing... System interface override in place. 00917_ Acquired ECM Suite. 00918_ Acquired 20 matter. 00929_ Flight Unit destroyed. Map ----- +----------------------------------------------------+ | | | | | ?????????????????????????????????????????????????? | | ?????????????????????????????????????????????????? | | ?????????????????????????????????????????????????? | | ?????????????????????????????????????????????????? | | ?????????????????????????????????????????????????? | | ?????????????????????????????????????????????????? | | ?????????????????????????????????????????????????? | | ?????????????????????????????????????????????????? | | ?????????????????????????????????????????????????? | | ?????????????????????????????????????????????????? | | ?????????????????????????????????????????????????? | | ?????????????????????????????????????????????????? | | ??????????????????????######?????????????????????? | | ????????????????????### #?????????????????????? | | ????????????????????? ??????????????????????? | | ?????????????????????? ??????????????????????? | | ??????????????????????? ??????????????????????? | | ???????????????????????# #??????????????????????? | | ???????????????????????# #??????????????????????? | | ???????????????????????# ########+##????????????? | | ???????????????????????# #????????????? | | ???????????????????????# #????????????? | | ????????????????????####+#### ##+#+##???????????? | | ????????????????????# @ # # #???????????? | | ????????????????????# # # #???????????? | | ????????????????????# # # """#???????????? | | ????????????????????# # + """#???????????? | | ????????????????????# # # """#???????????? | | ????????????????????# # # #???????????? | | ????????????????????# # # """#???????????? | | ????????????????????# # # """#???????????? | | ????????????????????# # # """#???????????? | | ????????????????????# # # #???????????? | | ????????????????????# # # = #???????????? | | ????????????????????######### # #???????????? | | ????????????????????????????# #############?????? | | ????????????????????????????# # ??????? | | ????????????????????????????# # """ ""??????? | | ????????????????????????????# # / """ ""??????? | | ????????????????????????????# + %/ """ ""??????? | | ????????????????????????????# # // """ ""??????? | | ????????????????????????????# # ??????? | | ????????????????????????????# #############?????? | | ????????????????????????????# #????????########## | | ????????????????????????????# #????????# # | | ????????????????????????????# #????????# """ # | | ????????????????????######??# #????????# """ # | | ????????????????????? ?# #????????# """ # | +----------------------------------------------------+ Best States ------------- Heat Dissipation 28 Energy Generation 10 Energy Capacity 250 Matter Stores 300 Matter Capacity 300 Sight Range 16 Terrain Scan Density 10 ECM Strength 1 Evasion (%) 62 Targeting Accuracy 5 Item Schematics ----------------- None Robot Schematics ------------------ None Fabricated ------------ Nothing Repaired ---------- Nothing Alien Tech Used ----------------- None Achievements -------------- None Challenges ------------ None Game ------ Seed ParticleAntimatterStatue Manual? 0 Play Time 00:21:44 Cumulative 36.5 hours Start 2025.07.01 @ 17:45:01 End 2025.07.01 @ 18:13:05 Sessions 1 Manual Loads 0 Difficulty Rogue Special Mode None Game No. 192 Rogue 192 Adventurer 0 Explorer 0 Win Type - Total 0 Types 0/0/0/0/0/0/0/0/0/0 Lore% 19 Gallery% 17 Achievement% 18 Wizard Run 0 Options --------- Layout 0 ASCII 1 Keyboard 1 Movement Numpad Keybinds 1 Fullscreen 1 Font 18/X11 Map View 76x50 Zoom Use 0% Tactical HUD 1 Map Filters NONE Filters NONE Steam 1 RUN: cf0f20e2-7aa4-4a3b-b817-df8cc21246b1